fUST/lending_fUST_20250531
["ID","MTS","AMOUNT","RATE_DAILY","PERIOD"]
[363319711,1748671833708,-430.0,0.00017538,2]
[363319712,1748671833718,-430.0,0.00017538,2]
[363319713,1748671833727,-430.0,0.00017538,2]
[363319714,1748671833737,-430.0,0.00017538,2]
[363319715,1748671833746,-430.0,0.00017538,2]
[363319716,1748671833756,-3422.19,0.00017538,2]
[363319717,1748671833765,-430.0,0.00017538,2]
[363319718,1748671833774,-430.0,0.00017538,2]
[363319719,1748671833783,-383.21356054,0.00017538,2]
[363319720,1748671833793,-430.0,0.00017538,2]
[363319721,1748671833802,-430.0,0.00017538,2]
[363319722,1748671833812,-430.0,0.00017538,2]
[363319723,1748671833822,-430.0,0.00017538,2]
[363319724,1748671833831,-430.0,0.00017538,2]
[363319725,1748671833841,-430.0,0.00017538,2]
[363319726,1748671833851,-570.90841972,0.00017538,2]
[363319727,1748671833860,-430.0,0.00017538,2]
[363319728,1748671833870,-430.0,0.00017538,2]
[363319729,1748671833880,-430.0,0.00017538,2]
[363319730,1748671833890,-430.0,0.00017538,2]
[363319731,1748671833900,-356.85291492,0.00017538,2]
[363319732,1748671833910,-430.0,0.00017538,2]
[363319733,1748671833919,-430.0,0.00017538,2]
[363319734,1748671833929,-225.82412333,0.00017538,2]
[363319735,1748671833938,-430.0,0.00017538,2]
[363319736,1748671833948,-430.0,0.00017538,2]
[363319737,1748671833957,-430.0,0.00017538,2]
[363319738,1748671833967,-430.0,0.00017538,2]
[363319739,1748671833976,-430.0,0.00017538,2]
[363319740,1748671833986,-208.21779657,0.00017538,2]
[363319741,1748671833995,-430.0,0.00017538,2]
[363319742,1748671834005,-430.0,0.00017538,2]
[363319743,1748671834015,-1269.56,0.00017539,2]
[363319744,1748671834024,-430.0,0.00017539,2]
[363319745,1748671834034,-430.0,0.00017539,2]
[363319746,1748671834044,-500.0,0.00017539,2]
[363319747,1748671834054,-430.0,0.00017539,2]
[363319748,1748671834063,-430.0,0.00017539,2]
[363319749,1748671834074,-729.4,0.00017539,2]
[363319750,1748671834084,-430.0,0.00017539,2]
[363319751,1748671834093,-430.0,0.00017539,2]
[363319752,1748671834103,-330.41196301,0.00017539,2]
[363319753,1748671834111,-23163.28,0.00017539,2]
[363319754,1748671834122,-430.0,0.00017539,2]
[363319755,1748671834144,-437.91,0.00017539,2]
[363319756,1748671834154,-430.0,0.00017539,2]
[363319757,1748671834164,-653.83,0.00017539,2]
[363319758,1748671834175,-430.0,0.00017539,2]
[363319759,1748671834185,-430.0,0.0001754,2]
[363319760,1748671834195,-210.51631516,0.0001754,2]
[363319761,1748671834205,-430.0,0.0001754,2]
[363319762,1748671834215,-430.0,0.0001754,2]
[363319763,1748671834225,-453.3464343,0.0001754,2]
[363319764,1748671834235,-500.0,0.0001754,2]
[363319765,1748671834246,-430.0,0.0001754,2]
[363319766,1748671834256,-430.0,0.0001754,2]
[363319767,1748671834266,-736.6,0.0001754,2]
[363319768,1748671834276,-445.00578594,0.0001754,2]
[363319769,1748671834286,-430.0,0.0001754,2]
[363319770,1748671834296,-430.0,0.0001754,2]
[363319771,1748671834305,-448.41591678,0.0001754,2]
[363319772,1748671834316,-430.0,0.0001754,2]
[363319773,1748671834327,-430.0,0.0001754,2]
[363319774,1748671834338,-430.0,0.0001754,2]
[363319775,1748671834353,-430.0,0.0001754,2]
[363319776,1748671834363,-430.0,0.0001754,2]
[363319777,1748671834373,-430.0,0.0001754,2]
[363319778,1748671834383,-430.0,0.0001754,2]
[363319779,1748671834394,-430.0,0.0001754,2]
[363319780,1748671834404,-430.0,0.0001754,2]
[363319781,1748671834414,-500.0,0.0001754,2]
[363319782,1748671834424,-500.0,0.0001754,2]
[363319783,1748671834434,-430.0,0.0001754,2]
[363319784,1748671834444,-430.0,0.0001754,2]
[363319785,1748671834453,-454.70987108,0.0001754,2]
[363319786,1748671834463,-260.01932301,0.0001754,2]
[363319787,1748671834472,-430.0,0.0001754,2]
[363319788,1748671834482,-430.0,0.0001754,2]
[363319789,1748671834492,-430.0,0.0001754,2]
[363319790,1748671834502,-430.0,0.00017541,2]
[363319791,1748671834512,-432.28143441,0.00017541,2]
[363319792,1748671834522,-430.0,0.00017541,2]
[363319793,1748671834531,-430.0,0.00017541,2]
[363319794,1748671834541,-430.0,0.00017541,2]
[363319795,1748671834551,-566.41,0.00017541,2]
[363319796,1748671834561,-443.64246596,0.00017541,2]
[363319797,1748671834570,-430.0,0.00017541,2]
[363319798,1748671834582,-430.0,0.00017541,2]
[363319799,1748671834592,-435.10959686,0.00017541,2]
[363319800,1748671834602,-430.0,0.00017541,2]
[363319801,1748671834611,-430.0,0.00017541,2]
[363319802,1748671834621,-577.83194408,0.00017541,2]
[363319803,1748671834631,-430.0,0.00017541,2]
[363319804,1748671834641,-430.0,0.00017541,2]
[363319805,1748671834650,-430.0,0.00017541,2]
[363319806,1748671834827,-430.0,0.00017541,2]
[363319807,1748671834837,-430.0,0.00017541,2]
[363319808,1748671834846,-359.00364058,0.00017651,2]
[363319809,1748671834855,-430.0,0.00017807,2]
[363319810,1748671834865,-1598.48,0.00017807,2]
[363319811,1748671834875,-430.0,0.0001781,2]
[363319812,1748671834884,-430.0,0.0001781,2]
[363319813,1748671834894,-430.0,0.0001781,2]
[363319814,1748671834904,-430.0,0.0001781,2]
[363319815,1748671834914,-522.82940769,0.00017811,2]
[363319816,1748671834924,-1718.82,0.00017811,2]
[363319817,1748671834933,-430.0,0.00017811,2]
[363319818,1748671834943,-488.79,0.00017811,2]
[363319819,1748671834952,-430.0,0.00017811,2]
[363319820,1748671834962,-430.0,0.00017811,2]
[363319821,1748671834971,-430.0,0.00017811,2]
[363319822,1748671834980,-2597.91,0.00017811,2]
[363319823,1748671834989,-1015.81,0.00017811,2]
[363319824,1748671834998,-1263.49,0.00017811,2]
[363319825,1748671835008,-430.0,0.00017811,2]
[363319826,1748671835017,-430.0,0.00017811,2]
[363319827,1748671835026,-430.0,0.00017811,2]
[363319828,1748671835035,-430.0,0.00017811,2]
[363319829,1748671835044,-430.0,0.00017811,2]
[363319830,1748671835054,-430.0,0.00017811,2]
[363319831,1748671835063,-430.0,0.00017811,2]
[363319832,1748671835074,-430.0,0.00017812,2]
[363319833,1748671835084,-430.0,0.00017812,2]
[363319834,1748671835093,-430.0,0.00017812,2]
[363319835,1748671835102,-430.0,0.00017812,2]
[363319836,1748671835112,-453.18138622,0.00017812,2]
[363319837,1748671835121,-430.0,0.00017812,2]
[363319838,1748671835131,-430.0,0.00017812,2]
[363319839,1748671835141,-430.0,0.00017812,2]
[363319840,1748671835151,-430.0,0.00017812,2]
[363319841,1748671835160,-472.40176926,0.00017812,2]
[363319842,1748671835170,-546.7536063,0.00017812,2]
[363319843,1748671835179,-3422.19,0.00017812,2]
[363319844,1748671835189,-280.0,0.00017812,2]
[363319845,1748671835198,-430.0,0.00017812,2]
[363319846,1748671835207,-430.0,0.00017812,2]
[363319847,1748671835216,-430.0,0.00017812,2]
[363319848,1748671835226,-430.0,0.00017812,2]
[363319849,1748671835235,-430.0,0.00017812,2]
[363319850,1748671835244,-430.0,0.00017812,2]
[363319851,1748671835253,-430.0,0.00017812,2]
[363319852,1748671835262,-430.0,0.00017812,2]
[363319853,1748671835271,-430.0,0.00017812,2]
[363319854,1748671835280,-430.0,0.00017812,2]
[363319855,1748671835289,-430.0,0.00017812,2]
[363319856,1748671835299,-430.0,0.00017812,2]
[363319857,1748671835309,-430.0,0.00017812,2]
[363319858,1748671835318,-430.0,0.00017812,2]
[363319859,1748671835330,-430.0,0.00017812,2]
[363319860,1748671835340,-1269.56,0.00017813,2]
[363319861,1748671835350,-430.0,0.00017813,2]
[363319862,1748671835360,-278.81751924,0.00017813,2]
[363319863,1748671835369,-430.0,0.00017813,2]
[363319864,1748671835379,-430.0,0.00017813,2]
[363319865,1748671835391,-729.4,0.00017813,2]
[363319866,1748671835401,-430.0,0.00017813,2]
[363319867,1748671835410,-430.0,0.00017813,2]
[363319868,1748671835423,-23163.28,0.00017813,2]
[363319869,1748671835432,-430.0,0.00017813,2]
[363319870,1748671835441,-437.91,0.00017813,2]
[363319871,1748671835451,-430.0,0.00017813,2]
[363319872,1748671835460,-653.83,0.00017813,2]
[363319873,1748671835470,-430.0,0.00017813,2]
[363319874,1748671835479,-204.93947362,0.00017814,2]
[363319875,1748671835489,-500.0,0.00017814,2]
[363319876,1748671835498,-430.0,0.00017814,2]
[363319877,1748671835508,-430.0,0.00017814,2]
[363319878,1748671835518,-736.6,0.00017814,2]
[363319879,1748671835527,-430.0,0.00017814,2]
[363319880,1748671835536,-430.0,0.00017814,2]
[363319881,1748671835546,-430.0,0.00017814,2]
[363319882,1748671835555,-430.0,0.00017814,2]
[363319883,1748671835564,-430.0,0.00017814,2]
[363319884,1748671835574,-440.72351575,0.00017814,2]
[363319885,1748671835583,-430.0,0.00017814,2]
[363319886,1748671835592,-430.0,0.00017814,2]
[363319887,1748671835602,-430.0,0.00017814,2]
[363319888,1748671835611,-430.0,0.00017814,2]
[363319889,1748671835621,-430.0,0.00017814,2]
[363319890,1748671835630,-430.0,0.00017814,2]
[363319891,1748671835639,-430.0,0.00017814,2]
[363319892,1748671835649,-430.0,0.00017815,2]
[363319893,1748671835658,-430.0,0.00017815,2]
[363319894,1748671835668,-430.0,0.00017815,2]
[363319895,1748671835677,-430.0,0.00017815,2]
[363319896,1748671835686,-430.0,0.00017815,2]
[363319897,1748671835695,-430.0,0.00017815,2]
[363319898,1748671835705,-430.0,0.00017815,2]
[363319899,1748671835715,-430.0,0.00017815,2]
[363319900,1748671835724,-430.0,0.00017815,2]
[363319901,1748671835733,-169.93744485,0.00017816,2]
[363319902,1748671835742,-159.71522884,0.0001785,2]
[363319903,1748671835752,-500.0,0.0001785,2]
[363319904,1748671835761,-501.24337579,0.00017882,2]
[363319905,1748671835770,-503.2996397,0.00017882,2]
[363319906,1748671835779,-1329.17994104,0.000179,2]
[363319907,1748671835789,-158.65179902,0.00017931,2]
[363319908,1748671835798,-500.0,0.0001795,2]
[363319909,1748671835807,-500.0,0.0001795,2]
[363319910,1748671835817,-500.0,0.00017952,2]
[363319911,1748671835826,-500.0,0.00017952,2]
[363319912,1748671835835,-286.00885095,0.00017952,2]
[363319913,1748671835844,-500.0,0.00017952,2]
[363319914,1748671835853,-500.0,0.00017952,2]
[363319915,1748671835863,-500.0,0.00017957,2]
[363319916,1748671835872,-500.0,0.00017957,2]
[363319917,1748671835883,-506.3374252,0.00017957,2]
[363319918,1748671835892,-500.0,0.00017957,2]
[363319919,1748671835902,-500.40711863,0.00017967,2]
[363319920,1748671835911,-505.05546524,0.00017967,2]
[363319921,1748671835920,-160.0,0.00017999,2]
[363319922,1748671835929,-676.77,0.00017999,2]
[363319923,1748671835939,-430.0,0.00017999,2]
[363319924,1748671835948,-2696.74,0.00017999,2]
[363319925,1748671835957,-546.32658098,0.00017999,2]
[363319926,1748671835967,-430.0,0.00017999,2]
[363319927,1748671835976,-430.0,0.00017999,2]
[363319928,1748671835985,-501.58870576,0.00018055,2]
[363319929,1748671835994,-250.3,0.00018075,2]
[363319930,1748671836004,-1598.48,0.00018081,2]
[363319931,1748671836013,-874.3905533,0.00018082,2]
[363319932,1748671836022,-203.0,0.00018082,3]
[363319933,1748671836032,-266.09,0.00018084,2]
[363319934,1748671836041,-430.0,0.00018084,2]
[363319935,1748671836050,-430.0,0.00018084,2]
[363319936,1748671836060,-442.16531653,0.00018084,2]
[363319937,1748671836069,-1718.82,0.00018085,2]
[363319938,1748671836079,-430.0,0.00018085,2]
[363319939,1748671836088,-488.79,0.00018085,2]
[363319940,1748671836097,-430.0,0.00018085,2]
[363319941,1748671836107,-430.0,0.00018085,2]
[363319942,1748671836116,-430.0,0.00018085,2]
[363319943,1748671836125,-2597.91,0.00018085,2]
[363319944,1748671836134,-1015.81,0.00018085,2]
[363319945,1748671836144,-1263.49,0.00018085,2]
[363319946,1748671836154,-430.0,0.00018085,2]
[363319947,1748671836163,-430.0,0.00018085,2]
[363319948,1748671836173,-430.0,0.00018085,2]
[363319949,1748671836184,-430.0,0.00018085,2]
[363319950,1748671836193,-430.0,0.00018085,2]
[363319951,1748671836203,-430.0,0.00018085,2]
[363319952,1748671836217,-430.0,0.00018085,2]
[363319953,1748671836226,-430.0,0.00018086,2]
[363319954,1748671836249,-430.0,0.00018086,2]
[363319955,1748671836275,-430.0,0.00018086,2]
[363319956,1748671836288,-430.0,0.00018086,2]
[363319957,1748671836302,-430.0,0.00018086,2]
[363319958,1748671836312,-430.0,0.00018086,2]
[363319959,1748671836321,-3422.19,0.00018086,2]
[363319960,1748671836332,-430.0,0.00018086,2]
[363319961,1748671836356,-430.0,0.00018086,2]
[363319962,1748671836366,-430.0,0.00018086,2]
[363319963,1748671836375,-430.0,0.00018086,2]
[363319964,1748671836386,-430.0,0.00018086,2]
[363319965,1748671836396,-430.0,0.00018086,2]
[363319966,1748671836406,-430.0,0.00018086,2]
[363319967,1748671836419,-430.0,0.00018086,2]
[363319968,1748671836429,-430.0,0.00018086,2]
[363319969,1748671836438,-430.0,0.00018086,2]
[363319970,1748671836447,-430.0,0.00018086,2]
[363319971,1748671836457,-1269.56,0.00018087,2]
[363319972,1748671836466,-430.0,0.00018087,2]
[363319973,1748671836475,-430.0,0.00018087,2]
[363319974,1748671836485,-729.4,0.00018087,2]
[363319975,1748671836494,-430.0,0.00018087,2]
[363319976,1748671836503,-430.0,0.00018087,2]
[363319977,1748671836513,-430.0,0.00018087,2]
[363319978,1748671836522,-23163.28,0.00018087,2]
[363319979,1748671836532,-430.0,0.00018087,2]
[363319980,1748671836542,-437.91,0.00018087,2]
[363319981,1748671836551,-430.0,0.00018087,2]
[363319982,1748671836560,-653.83,0.00018087,2]
[363319983,1748671836570,-430.0,0.00018087,2]
[363319984,1748671836579,-500.0,0.00018088,2]
[363319985,1748671836589,-430.0,0.00018088,2]
[363319986,1748671836599,-509.88,0.00018088,2]
[363319987,1748671836609,-736.6,0.00018088,2]
[363319988,1748671836619,-430.0,0.00018088,2]
[363319989,1748671836628,-430.0,0.00018088,2]
[363319990,1748671836638,-430.0,0.00018088,2]
[363319991,1748671836647,-430.0,0.00018088,2]
[363319992,1748671836657,-430.0,0.00018088,2]
[363319993,1748671836667,-430.0,0.00018088,2]
[363319994,1748671836677,-430.0,0.00018088,2]
[363319995,1748671836686,-180.63838172,0.00018088,2]
[363319996,1748671836695,-430.0,0.00018088,2]
[363319997,1748671836705,-430.0,0.00018088,2]
[363319998,1748671836714,-166.68638067,0.00018089,2]
[363319999,1748671836723,-430.0,0.00018089,2]
[363320000,1748671836733,-430.0,0.00018089,2]
[363320001,1748671836743,-430.0,0.00018089,2]
[363320002,1748671836753,-450.0,0.00018089,2]
[363320003,1748671836763,-430.0,0.00018089,2]
[363320004,1748671836772,-430.0,0.00018089,2]
[363320005,1748671836782,-500.0,0.00018137,2]
[363320006,1748671836791,-1329.1799409,0.00018141,2]
[363320007,1748671836802,-800.0,0.00018164,2]
[363320008,1748671836812,-1226.67156182,0.0001817,2]
[363320009,1748671836822,-500.76118284,0.00018171,2]
[363320010,1748671836833,-500.0,0.00018171,2]
[363320011,1748671836842,-504.18994872,0.00018171,2]
[363320012,1748671836852,-273.41271066,0.00018238,2]
[363320013,1748671836861,-676.77,0.00018273,2]
[363320014,1748671836871,-430.0,0.00018273,2]
[363320015,1748671836880,-2696.74,0.00018273,2]
[363320016,1748671836889,-430.0,0.00018273,2]
[363320017,1748671836899,-430.0,0.00018273,2]
[363320018,1748671836909,-500.0,0.00018314,2]
[363320019,1748671836918,-500.0,0.00018314,2]
[363320020,1748671836927,-1598.48,0.00018355,2]
[363320021,1748671836936,-434.18,0.00018358,2]
[363320022,1748671836946,-430.0,0.00018358,2]
[363320023,1748671836956,-1718.82,0.00018359,2]
[363320024,1748671836965,-488.79,0.00018359,2]
[363320025,1748671836974,-366.53750699,0.00018359,2]
[363320026,1748671836985,-430.0,0.00018359,2]
[363320027,1748671836996,-430.0,0.00018359,2]
[363320028,1748671837006,-2597.91,0.00018359,2]
[363320029,1748671837016,-1015.81,0.00018359,2]
[363320030,1748671837026,-1263.49,0.00018359,2]
[363320031,1748671837037,-430.0,0.00018359,2]
[363320032,1748671837047,-430.0,0.00018359,2]
[363320033,1748671837058,-430.0,0.00018359,2]
[363320034,1748671837074,-430.0,0.00018359,2]
[363320035,1748671837100,-430.0,0.00018359,2]
[363320036,1748671837120,-430.0,0.00018359,2]
[363320037,1748671837132,-430.0,0.0001836,2]
[363320038,1748671837142,-440.85137291,0.0001836,2]
[363320039,1748671837152,-430.0,0.0001836,2]
[363320040,1748671837162,-430.0,0.0001836,2]
[363320041,1748671837172,-430.0,0.0001836,2]
[363320042,1748671837182,-3422.19,0.0001836,2]
[363320043,1748671837191,-430.0,0.0001836,2]
[363320044,1748671837201,-430.0,0.0001836,2]
[363320045,1748671837212,-430.0,0.0001836,2]
[363320046,1748671837222,-430.0,0.0001836,2]
[363320047,1748671837232,-430.0,0.0001836,2]
[363320048,1748671837241,-430.0,0.0001836,2]
[363320049,1748671837251,-430.0,0.0001836,2]
[363320050,1748671837260,-430.0,0.0001836,2]
[363320051,1748671837270,-1269.56,0.00018361,2]
[363320052,1748671837280,-430.0,0.00018361,2]
[363320053,1748671837289,-430.0,0.00018361,2]
[363320054,1748671837299,-729.4,0.00018361,2]
[363320055,1748671837309,-430.0,0.00018361,2]
[363320056,1748671837319,-430.0,0.00018361,2]
[363320057,1748671837333,-430.0,0.00018361,2]
[363320058,1748671837345,-23163.28,0.00018361,2]
[363320059,1748671837354,-430.0,0.00018361,2]
[363320060,1748671837364,-437.91,0.00018361,2]
[363320061,1748671837374,-430.0,0.00018361,2]
[363320062,1748671837384,-653.83,0.00018361,2]
[363320063,1748671837394,-430.0,0.00018361,2]
[363320064,1748671837403,-500.0,0.00018362,2]
[363320065,1748671837413,-430.0,0.00018362,2]
[363320066,1748671837424,-736.6,0.00018362,2]
[363320067,1748671837434,-430.0,0.00018362,2]
[363320068,1748671837443,-430.0,0.00018362,2]
[363320069,1748671837453,-430.0,0.00018362,2]
[363320070,1748671837463,-430.0,0.00018362,2]
[363320071,1748671837473,-430.0,0.00018362,2]
[363320072,1748671837483,-430.0,0.00018362,2]
[363320073,1748671837492,-430.0,0.00018362,2]
[363320074,1748671837502,-430.0,0.00018362,2]
[363320075,1748671837512,-430.0,0.00018363,2]
[363320076,1748671837521,-326.849475,0.00018363,2]
[363320077,1748671837647,-430.0,0.00018363,2]
[363320078,1748671837656,-1329.1799409,0.00018383,2]
[363320079,1748671837666,-1000.0,0.00018398,2]
[363320080,1748671837675,-508.42262004,0.00018498,2]
[363320081,1748671837685,-1000.0,0.00018498,2]
[363320082,1748671837695,-510.48415491,0.000185,2]
[363320083,1748671837704,-1007.06452997,0.000185,2]
[363320084,1748671837714,-1003.67587005,0.000185,2]
[363320085,1748671837723,-1000.0,0.000185,2]
[363320086,1748671837732,-1000.0,0.00018505,2]
[363320087,1748671837742,-919.49888693,0.00018505,2]
[363320088,1748671837752,-389.04136576,0.00018505,2]
[363320089,1748671837761,-676.77,0.00018547,2]
[363320090,1748671837770,-430.0,0.00018547,2]
[363320091,1748671837780,-2696.74,0.00018547,2]
[363320092,1748671837791,-430.0,0.00018547,2]
[363320093,1748671837800,-438.87063163,0.00018547,2]
[363320094,1748671837811,-1329.1799409,0.00018624,2]
[363320095,1748671837820,-1598.48,0.00018629,2]
[363320096,1748671837830,-430.0,0.00018632,2]
[363320097,1748671837840,-1718.82,0.00018633,2]
[363320098,1748671837849,-488.79,0.00018633,2]
[363320100,1748671837859,-314.93132917,0.00018633,2]
[363320101,1748671837868,-430.0,0.00018633,2]
[363320102,1748671837878,-2597.91,0.00018633,2]
[363320103,1748671837887,-1015.81,0.00018633,2]
[363320104,1748671837897,-1263.49,0.00018633,2]
[363320105,1748671837906,-430.0,0.00018633,2]
[363320106,1748671837916,-430.0,0.00018633,2]
[363320107,1748671837927,-430.0,0.00018633,2]
[363320108,1748671837940,-430.0,0.00018633,2]
[363320110,1748671837951,-430.0,0.00018633,2]
[363320112,1748671837960,-430.0,0.00018633,2]
[363320113,1748671837969,-430.0,0.00018634,2]
[363320115,1748671837979,-430.0,0.00018634,2]
[363320117,1748671837988,-430.0,0.00018634,2]
[363320119,1748671837998,-430.0,0.00018634,2]
[363320121,1748671838008,-3422.19,0.00018634,2]
[363320123,1748671838018,-430.0,0.00018634,2]
[363320125,1748671838027,-430.0,0.00018634,2]
[363320128,1748671838036,-430.0,0.00018634,2]
[363320130,1748671838047,-430.0,0.00018634,2]
[363320131,1748671838056,-430.0,0.00018634,2]
[363320132,1748671838065,-430.0,0.00018634,2]
[363320133,1748671838076,-430.0,0.00018634,2]
[363320134,1748671838085,-1269.56,0.00018635,2]
[363320135,1748671838094,-430.0,0.00018635,2]
[363320136,1748671838103,-445.89410629,0.00018635,2]
[363320137,1748671838112,-729.4,0.00018635,2]
[363320138,1748671838122,-430.0,0.00018635,2]
[363320139,1748671838132,-430.0,0.00018635,2]
[363320140,1748671838141,-23163.28,0.00018635,2]
[363320142,1748671838150,-430.0,0.00018635,2]
[363320143,1748671838159,-437.91,0.00018635,2]
[363320145,1748671838168,-430.0,0.00018635,2]
[363320146,1748671838178,-653.83,0.00018635,2]
[363320147,1748671838187,-363.92,0.00018635,2]
[363320148,1748671838196,-500.0,0.00018636,2]
[363320149,1748671838205,-430.0,0.00018636,2]
[363320151,1748671838215,-736.6,0.00018636,2]
[363320153,1748671838224,-430.0,0.00018636,2]
[363320155,1748671838233,-430.0,0.00018636,2]
[363320156,1748671838243,-430.0,0.00018636,2]
[363320158,1748671838252,-430.0,0.00018636,2]
[363320160,1748671838261,-430.0,0.00018636,2]
[363320161,1748671838270,-430.0,0.00018636,2]
[363320163,1748671838279,-430.0,0.00018636,2]
[363320165,1748671838288,-430.0,0.00018636,2]
[363320167,1748671838298,-430.0,0.00018637,2]
[363320168,1748671838307,-571.69,0.00018637,2]
[363320170,1748671838316,-1000.05900225,0.00018685,2]
[363320172,1748671838328,-505.48817965,0.00018719,2]
[363320174,1748671838338,-246.14657181,0.00018742,2]
[363320176,1748671838352,-500.0,0.00018769,2]
[363320177,1748671838362,-165.5931255,0.00018769,2]
[363320179,1748671838371,-628.9302745,0.00018796,2]
[363320181,1748671838380,-1000.0,0.000188,2]
[363320183,1748671838390,-1000.0,0.000188,3]
[363320184,1748671838400,-676.77,0.00018821,2]
[363320186,1748671838409,-2696.74,0.00018821,2]
[363320188,1748671838420,-430.0,0.00018821,2]
[363320189,1748671838432,-420.0,0.00018846,2]
[363320191,1748671838442,-300.0,0.00018849,2]
[363320193,1748671838451,-1003.07857468,0.00018862,2]
[363320195,1748671838461,-1000.0,0.00018862,2]
[363320197,1748671838470,-1329.1799409,0.00018866,2]
[363320198,1748671838479,-1226.67156182,0.00018902,2]
[363320200,1748671838488,-1598.48,0.00018903,2]
[363320202,1748671838498,-430.0,0.00018906,2]
[363320204,1748671838507,-1718.82,0.00018907,2]
[363320205,1748671838517,-488.79,0.00018907,2]
[363320207,1748671838527,-2597.91,0.00018907,2]
[363320209,1748671838536,-1015.81,0.00018907,2]
[363320211,1748671838545,-1263.49,0.00018907,2]
[363320212,1748671838554,-467.8349677,0.00018907,2]
[363320214,1748671838563,-430.0,0.00018907,2]
[363320217,1748671838573,-430.0,0.00018907,2]
[363320219,1748671838587,-430.0,0.00018907,2]
[363320220,1748671838595,-430.0,0.00018907,2]
[363320222,1748671838605,-430.0,0.00018907,2]
[363320224,1748671838614,-430.0,0.00018908,2]
[363320228,1748671838624,-430.0,0.00018908,2]
[363320230,1748671838633,-430.0,0.00018908,2]
[363320233,1748671838642,-430.0,0.00018908,2]
[363320235,1748671838652,-3422.19,0.00018908,2]
[363320237,1748671838662,-430.0,0.00018908,2]
[363320238,1748671838671,-430.0,0.00018908,2]
[363320240,1748671838680,-430.0,0.00018908,2]
[363320242,1748671838690,-373.74184558,0.00018908,2]
[363320244,1748671838699,-430.0,0.00018908,2]
[363320245,1748671838708,-430.0,0.00018908,2]
[363320247,1748671838718,-430.0,0.00018908,2]
[363320249,1748671838727,-1269.56,0.00018909,2]
[363320251,1748671838738,-430.0,0.00018909,2]
[363320252,1748671838747,-729.4,0.00018909,2]
[363320254,1748671838756,-430.0,0.00018909,2]
[363320256,1748671838765,-430.0,0.00018909,2]
[363320258,1748671838774,-23163.28,0.00018909,2]
[363320259,1748671838783,-430.0,0.00018909,2]
[363320261,1748671838792,-437.91,0.00018909,2]
[363320263,1748671838802,-550.94303397,0.00018909,2]
[363320264,1748671838811,-653.83,0.00018909,2]
[363320266,1748671838820,-500.0,0.0001891,2]
[363320267,1748671838832,-430.0,0.0001891,2]
[363320269,1748671838841,-736.6,0.0001891,2]
[363320270,1748671838850,-430.0,0.0001891,2]
[363320272,1748671838859,-430.0,0.0001891,2]
[363320273,1748671838869,-430.0,0.0001891,2]
[363320274,1748671838878,-430.0,0.0001891,2]
[363320275,1748671838887,-430.0,0.0001891,2]
[363320276,1748671838896,-430.0,0.0001891,2]
[363320277,1748671838906,-430.0,0.0001891,2]
[363320278,1748671838915,-430.0,0.0001891,2]
[363320279,1748671838925,-1640.0,0.00018942,2]